[Event "Live Chess"]
[Site "Chess.com"]
[Date "2024.06.02"]
[Round "-"]
[White "V1nas"]
[Black "Larchikov"]
[Result "0-1"]
[WhiteElo "1314"]
[BlackElo "2055"]
[TimeControl "300"]
[EndTime "7:03:00 PDT"]
[Termination "Larchikov won by resignation"]

1. d4 {[%clk 0:04:58.3]} 1... Nf6 {[%clk 0:04:57.4]} 2. Nc3 {[%clk 0:04:57.5]}
2... c5 {[%clk 0:04:56.5]} 3. d5 {[%clk 0:04:54.8]} 3... d6 {[%clk 0:04:55.2]}
4. Bg5 {[%clk 0:04:54.3]} 4... e6 {[%clk 0:04:53.9]} 5. e4 {[%clk 0:04:51.1]}
5... Be7 {[%clk 0:04:51.5]} 6. Bd3 {[%clk 0:04:37.4]} 6... O-O {[%clk
0:04:42.9]} 7. Bxf6 {[%clk 0:04:35.5]} 7... Bxf6 {[%clk 0:04:38.5]} 8. Qd2
{[%clk 0:04:26.5]} 8... Re8 {[%clk 0:04:34]} 9. Nge2 {[%clk 0:04:23.8]} 9... Qb6
{[%clk 0:04:26.7]} 10. O-O-O {[%clk 0:04:21]} 10... Na6 {[%clk 0:04:20.1]} 11.
a3 {[%clk 0:04:19.2]} 11... Nc7 {[%clk 0:04:14.1]} 12. Na4 {[%clk 0:04:04.6]}
12... Bxb2+ {[%clk 0:03:46.3]} 13. Nxb2 {[%clk 0:03:58.1]} 13... a5 {[%clk
0:03:36.4]} 14. Na4 {[%clk 0:03:53.9]} 14... Qa7 {[%clk 0:03:34.7]} 15. f4
{[%clk 0:03:44.4]} 15... b5 {[%clk 0:03:31.7]} 16. dxe6 {[%clk 0:03:24.9]} 16...
Bxe6 {[%clk 0:03:24.9]} 17. f5 {[%clk 0:03:22.4]} 17... Bd7 {[%clk 0:03:19.3]}
18. f6 {[%clk 0:02:56.1]} 18... bxa4 {[%clk 0:03:14.1]} 19. fxg7 {[%clk
0:02:52.7]} 19... Reb8 {[%clk 0:03:06.7]} 20. Nc3 {[%clk 0:02:45.8]} 20... Qb6
{[%clk 0:02:59.3]} 21. Qe3 {[%clk 0:02:06.3]} 21... Be6 {[%clk 0:02:40.1]} 22.
Qh6 {[%clk 0:02:00.9]} 22... c4 {[%clk 0:02:31.9]} 23. Be2 {[%clk 0:01:49.4]}
23... Nb5 {[%clk 0:02:20.9]} 24. Kd2 {[%clk 0:01:47.5]} 24... Qd4+ {[%clk
0:02:18.4]} 25. Ke1 {[%clk 0:01:32.3]} 25... Qxc3+ {[%clk 0:02:16]} 26. Kf2
{[%clk 0:01:31.6]} 26... Qxg7 {[%clk 0:02:13.9]} 27. Qe3 {[%clk 0:01:28.6]}
27... Qf6+ {[%clk 0:02:05.7]} 28. Bf3 {[%clk 0:01:23.8]} 28... Rd8 {[%clk
0:01:58.5]} 29. Rhf1 {[%clk 0:01:21.5]} 29... Rab8 {[%clk 0:01:44.8]} 30. Kg1
{[%clk 0:01:20.5]} 30... Qg7 {[%clk 0:01:39.2]} 31. Qf4 {[%clk 0:00:57]} 31...
Rb6 {[%clk 0:01:20.6]} 32. Bh5 {[%clk 0:00:48.5]} 32... Nc3 {[%clk 0:01:06.8]}
33. Rd2 {[%clk 0:00:15.2]} 33... Rb5 {[%clk 0:00:57.9]} 34. e5 {[%clk
0:00:08.8]} 34... Rxe5 {[%clk 0:00:54.6]} 35. Qxe5 {[%clk 0:00:05.8]} 35... Qxe5
{[%clk 0:00:50.2]} 0-1

[Event "Live Chess"]
[Site "Chess.com"]
[Date "2024.06.02"]
[Round "-"]
[White "Nazar-Makarchuk"]
[Black "Val1024"]
[Result "0-1"]
[WhiteElo "1476"]
[BlackElo "1750"]
[TimeControl "300"]
[EndTime "7:03:27 PDT"]
[Termination "Val1024 won by resignation"]

1. e4 {[%clk 0:04:58.1]} 1... e5 {[%clk 0:04:58.3]} 2. Nf3 {[%clk 0:04:56.7]}
2... Nc6 {[%clk 0:04:57.6]} 3. Bb5 {[%clk 0:04:55.2]} 3... a6 {[%clk 0:04:51]}
4. Bxc6 {[%clk 0:04:54.5]} 4... dxc6 {[%clk 0:04:49.2]} 5. O-O {[%clk
0:04:54.1]} 5... Bg4 {[%clk 0:04:48]} 6. d4 {[%clk 0:04:53.1]} 6... Bxf3 {[%clk
0:04:42.9]} 7. Qxf3 {[%clk 0:04:51.9]} 7... Qxd4 {[%clk 0:04:38.6]} 8. Qd3
{[%clk 0:04:47.5]} 8... Qxd3 {[%clk 0:04:37.1]} 9. cxd3 {[%clk 0:04:47.1]} 9...
Bc5 {[%clk 0:04:36]} 10. Nc3 {[%clk 0:04:45.9]} 10... Ne7 {[%clk 0:04:33.6]} 11.
Be3 {[%clk 0:04:45.4]} 11... Bxe3 {[%clk 0:04:31.7]} 12. fxe3 {[%clk 0:04:44.3]}
12... f6 {[%clk 0:04:31.2]} 13. d4 {[%clk 0:04:43.7]} 13... Ng6 {[%clk
0:04:27.6]} 14. dxe5 {[%clk 0:04:42.3]} 14... Nxe5 {[%clk 0:04:25.9]} 15. Rad1
{[%clk 0:04:37.3]} 15... Ke7 {[%clk 0:04:24.9]} 16. Ne2 {[%clk 0:04:35.5]} 16...
Rad8 {[%clk 0:04:21.7]} 17. Nc3 {[%clk 0:04:28.9]} 17... Nc4 {[%clk 0:04:18.5]}
18. Rxd8 {[%clk 0:04:21.6]} 18... Rxd8 {[%clk 0:04:15.1]} 19. b3 {[%clk
0:04:21.2]} 19... Nxe3 {[%clk 0:04:12]} 20. Re1 {[%clk 0:04:18]} 20... Rd3
{[%clk 0:04:08.4]} 21. Na4 {[%clk 0:04:12.2]} 21... Nc2 {[%clk 0:04:04.9]} 22.
Re2 {[%clk 0:04:09.2]} 22... Nd4 {[%clk 0:04:01.3]} 23. Re1 {[%clk 0:04:05.2]}
23... b6 {[%clk 0:03:59.6]} 24. Kf2 {[%clk 0:04:03.6]} 24... c5 {[%clk
0:03:51.7]} 25. Re3 {[%clk 0:03:52.2]} 25... Rd2+ {[%clk 0:03:45.4]} 26. Kg3
{[%clk 0:03:48.8]} 26... Rxa2 {[%clk 0:03:39]} 27. Rd3 {[%clk 0:03:42.7]} 27...
Ra3 {[%clk 0:03:33.2]} 28. Kf2 {[%clk 0:03:31.8]} 28... Rxb3 {[%clk 0:03:31]}
29. Rxb3 {[%clk 0:03:30.7]} 29... Nxb3 {[%clk 0:03:26.6]} 30. Ke3 {[%clk
0:03:29.9]} 30... Nd4 {[%clk 0:03:00]} 31. Nc3 {[%clk 0:03:26.8]} 31... c6
{[%clk 0:02:57.6]} 32. Na4 {[%clk 0:03:21.1]} 32... b5 {[%clk 0:02:55.2]} 33.
Nxc5 {[%clk 0:03:19.6]} 33... Ne6 {[%clk 0:02:52.3]} 34. Nxa6 {[%clk 0:03:17.5]}
34... Kd6 {[%clk 0:02:51.6]} 35. Nb4 {[%clk 0:03:10.4]} 35... Nc5 {[%clk
0:02:41.4]} 36. Kd4 {[%clk 0:03:05.9]} 36... Nd7 {[%clk 0:02:39.7]} 37. Nd3
{[%clk 0:03:01.8]} 37... c5+ {[%clk 0:02:35.3]} 38. Ke3 {[%clk 0:02:59.8]} 38...
g6 {[%clk 0:02:32.3]} 39. Nf4 {[%clk 0:02:55.4]} 39... Nb6 {[%clk 0:02:25.9]}
40. h4 {[%clk 0:02:52.3]} 40... g5 {[%clk 0:02:21.2]} 41. hxg5 {[%clk
0:02:51.3]} 41... fxg5 {[%clk 0:02:19.9]} 42. Nh3 {[%clk 0:02:50.8]} 42... h6
{[%clk 0:02:18.4]} 43. Kd3 {[%clk 0:02:47]} 43... Nc4 {[%clk 0:02:16.8]} 44. Nf2
{[%clk 0:02:41.4]} 44... Ne5+ {[%clk 0:02:15.2]} 45. Ke3 {[%clk 0:02:38.3]}
45... b4 {[%clk 0:02:13.4]} 46. Nd1 {[%clk 0:02:36.5]} 46... Kc6 {[%clk
0:02:05.7]} 47. Nb2 {[%clk 0:02:35.2]} 47... Kb5 {[%clk 0:02:04.7]} 48. Kf2
{[%clk 0:02:31.2]} 48... c4 {[%clk 0:02:02.5]} 49. Ke3 {[%clk 0:02:30.3]} 49...
c3 {[%clk 0:02:00.6]} 50. Nd3 {[%clk 0:02:24.7]} 50... Nxd3 {[%clk 0:01:58.3]}
51. Kxd3 {[%clk 0:02:24.1]} 51... Kc5 {[%clk 0:01:57.9]} 52. g4 {[%clk
0:02:21.3]} 52... Kd6 {[%clk 0:01:55.8]} 53. Kc2 {[%clk 0:02:17.2]} 53... Ke5
{[%clk 0:01:54.7]} 54. Kd3 {[%clk 0:02:16.7]} 54... b3 {[%clk 0:01:50.9]} 55.
Kxc3 {[%clk 0:02:15.4]} 55... Kxe4 {[%clk 0:01:49.5]} 56. Kxb3 {[%clk 0:02:15]}
56... Kf4 {[%clk 0:01:49.2]} 57. Kc2 {[%clk 0:02:14.6]} 57... Kxg4 {[%clk
0:01:48.9]} 58. Kd1 {[%clk 0:02:14.3]} 58... Kf3 {[%clk 0:01:48.6]} 59. Ke1
{[%clk 0:02:13.6]} 59... Kg2 {[%clk 0:01:46.8]} 60. Ke2 {[%clk 0:02:12.6]} 60...
g4 {[%clk 0:01:46.4]} 61. Ke3 {[%clk 0:02:11.7]} 61... g3 {[%clk 0:01:44.3]} 62.
Kf4 {[%clk 0:02:11.1]} 62... Kf2 {[%clk 0:01:42.9]} 63. Kg4 {[%clk 0:02:10.1]}
63... g2 {[%clk 0:01:42.5]} 64. Kh5 {[%clk 0:02:09.7]} 64... g1=Q {[%clk
0:01:41.5]} 65. Kxh6 {[%clk 0:02:09.3]} 65... Kf3 {[%clk 0:01:40.7]} 0-1

[Event "Live Chess"]
[Site "Chess.com"]
[Date "2024.06.02"]
[Round "-"]
[White "LL220284LL"]
[Black "RichardABates"]
[Result "0-1"]
[WhiteElo "2464"]
[BlackElo "2378"]
[TimeControl "300"]
[EndTime "7:03:44 PDT"]
[Termination "RichardABates won by resignation"]

1. d4 {[%clk 0:04:57.1]} 1... Nf6 {[%clk 0:04:57.4]} 2. Bg5 {[%clk 0:04:55.7]}
2... d5 {[%clk 0:04:54]} 3. Nd2 {[%clk 0:04:53.2]} 3... c5 {[%clk 0:04:46.7]} 4.
e3 {[%clk 0:04:43.1]} 4... cxd4 {[%clk 0:04:44.6]} 5. exd4 {[%clk 0:04:42.1]}
5... Qb6 {[%clk 0:04:42.8]} 6. Nb3 {[%clk 0:04:39.6]} 6... Ne4 {[%clk
0:04:33.3]} 7. Be3 {[%clk 0:04:37.6]} 7... e6 {[%clk 0:04:29.4]} 8. Nf3 {[%clk
0:04:36.4]} 8... Nc6 {[%clk 0:04:26.4]} 9. Be2 {[%clk 0:04:33.6]} 9... Bd6
{[%clk 0:04:13.9]} 10. O-O {[%clk 0:04:31.1]} 10... O-O {[%clk 0:04:11.8]} 11.
c3 {[%clk 0:04:16.3]} 11... f5 {[%clk 0:04:09]} 12. Ne1 {[%clk 0:04:02.8]} 12...
Qc7 {[%clk 0:03:51.4]} 13. f4 {[%clk 0:03:57.5]} 13... g5 {[%clk 0:03:41.1]} 14.
Nd3 {[%clk 0:03:52.9]} 14... Bd7 {[%clk 0:03:32.4]} 15. Ne5 {[%clk 0:03:43.9]}
15... Nxe5 {[%clk 0:03:26.2]} 16. fxe5 {[%clk 0:03:40.9]} 16... Be7 {[%clk
0:03:24.9]} 17. Nc1 {[%clk 0:03:35.3]} 17... Be8 {[%clk 0:03:22.1]} 18. Nd3
{[%clk 0:03:32]} 18... Bg6 {[%clk 0:03:19]} 19. Nf2 {[%clk 0:03:13.3]} 19... Rf7
{[%clk 0:02:54.8]} 20. Nxe4 {[%clk 0:03:08.1]} 20... dxe4 {[%clk 0:02:52]} 21.
Qb3 {[%clk 0:03:06.7]} 21... f4 {[%clk 0:02:44.2]} 22. Bd2 {[%clk 0:03:03]}
22... Bf5 {[%clk 0:02:40.5]} 23. Bc4 {[%clk 0:02:58.4]} 23... Qb6 {[%clk
0:02:32.9]} 24. Qxb6 {[%clk 0:02:51.1]} 24... axb6 {[%clk 0:02:31.3]} 25. d5
{[%clk 0:02:50.8]} 25... Bc5+ {[%clk 0:02:18]} 26. Kh1 {[%clk 0:02:48.7]} 26...
Re8 {[%clk 0:02:10.6]} 27. d6 {[%clk 0:02:46]} 27... e3 {[%clk 0:02:03.8]} 28.
Be1 {[%clk 0:02:44]} 28... b5 {[%clk 0:01:55.4]} 29. Bxb5 {[%clk 0:02:42]} 29...
Rd8 {[%clk 0:01:51.7]} 30. b4 {[%clk 0:02:40.5]} 30... Ba7 {[%clk 0:01:45.9]}
31. Be2 {[%clk 0:02:33.2]} 31... Rg7 {[%clk 0:01:37.5]} 32. c4 {[%clk
0:02:30.5]} 32... Bd4 {[%clk 0:01:35.4]} 33. Rd1 {[%clk 0:02:25.8]} 33... Bxe5
{[%clk 0:01:34]} 34. c5 {[%clk 0:02:25.1]} 34... Be4 {[%clk 0:01:30.4]} 35. Bf3
{[%clk 0:02:23.5]} 35... Bxf3 {[%clk 0:01:28.4]} 36. gxf3 {[%clk 0:02:23.4]}
36... e2 {[%clk 0:01:26.8]} 37. Bf2 {[%clk 0:02:19.6]} 37... exf1=Q+ {[%clk
0:01:23]} 38. Rxf1 {[%clk 0:02:16.6]} 38... Bxd6 {[%clk 0:01:18.5]} 39. cxd6
{[%clk 0:02:15.5]} 39... Rxd6 {[%clk 0:01:17.4]} 40. Re1 {[%clk 0:02:13.3]}
40... Rgd7 {[%clk 0:01:15.4]} 41. Kg2 {[%clk 0:02:11]} 41... Kf7 {[%clk
0:01:13.8]} 42. Bc5 {[%clk 0:02:06.2]} 42... Rd2+ {[%clk 0:01:12.1]} 43. Kh3
{[%clk 0:02:05.2]} 43... h5 {[%clk 0:01:08]} 44. a4 {[%clk 0:01:59.3]} 44... Ra2
{[%clk 0:01:02.1]} 45. Re5 {[%clk 0:01:54.8]} 45... Rd5 {[%clk 0:01:00.5]} 46.
Rxd5 {[%clk 0:01:50.2]} 46... exd5 {[%clk 0:00:59.1]} 47. a5 {[%clk 0:01:50.1]}
47... Ke6 {[%clk 0:00:57.1]} 48. Bb6 {[%clk 0:01:46.6]} 48... Kf5 {[%clk
0:00:55.6]} 49. b5 {[%clk 0:01:43.1]} 49... g4+ {[%clk 0:00:53.2]} 0-1

[Event "Live Chess"]
[Site "Chess.com"]
[Date "2024.06.02"]
[Round "-"]
[White "beltmanjb"]
[Black "JanMur7"]
[Result "0-1"]
[WhiteElo "1690"]
[BlackElo "2295"]
[TimeControl "300"]
[EndTime "7:03:54 PDT"]
[Termination "JanMur7 won on time"]

1. d4 {[%clk 0:04:57.6]} 1... Nf6 {[%clk 0:04:58.4]} 2. c4 {[%clk 0:04:57]} 2...
a6 {[%clk 0:04:56.8]} 3. g3 {[%clk 0:04:55.2]} 3... b5 {[%clk 0:04:55.1]} 4. Bg2
{[%clk 0:04:53.7]} 4... Ra7 {[%clk 0:04:53.6]} 5. b3 {[%clk 0:04:46.8]} 5...
bxc4 {[%clk 0:04:49.3]} 6. bxc4 {[%clk 0:04:45.1]} 6... Bb7 {[%clk 0:04:48.8]}
7. d5 {[%clk 0:04:41.3]} 7... e6 {[%clk 0:04:45.4]} 8. e4 {[%clk 0:04:40.4]}
8... exd5 {[%clk 0:04:40.4]} 9. Be3 {[%clk 0:04:37.8]} 9... Bb4+ {[%clk
0:04:33.7]} 10. Nd2 {[%clk 0:04:33.8]} 10... Ra8 {[%clk 0:04:24.2]} 11. exd5
{[%clk 0:04:19.8]} 11... O-O {[%clk 0:04:21.4]} 12. Ne2 {[%clk 0:04:17.5]} 12...
Ng4 {[%clk 0:04:16.3]} 13. Bd4 {[%clk 0:04:12.2]} 13... c5 {[%clk 0:04:09]} 14.
Bb2 {[%clk 0:04:07.5]} 14... Re8 {[%clk 0:03:51.7]} 15. O-O {[%clk 0:04:06]}
15... d6 {[%clk 0:03:42.6]} 16. Nf4 {[%clk 0:03:52.8]} 16... Ne5 {[%clk
0:03:37.3]} 17. Rb1 {[%clk 0:03:41.9]} 17... Bxd2 {[%clk 0:03:30]} 18. Qxd2
{[%clk 0:03:37.8]} 18... Nxc4 {[%clk 0:03:25]} 19. Qc3 {[%clk 0:03:27.6]} 19...
Nxb2 {[%clk 0:03:23.3]} 20. Rxb2 {[%clk 0:03:26.9]} 20... Bc8 {[%clk 0:03:01]}
21. Rfb1 {[%clk 0:03:21.3]} 21... Nd7 {[%clk 0:02:57.4]} 22. Bh3 {[%clk
0:03:05.2]} 22... Ne5 {[%clk 0:02:50.3]} 23. Bxc8 {[%clk 0:02:57.3]} 23... Qxc8
{[%clk 0:02:50.2]} 24. Rb6 {[%clk 0:02:51.7]} 24... Qc7 {[%clk 0:02:40.2]} 25.
Rb7 {[%clk 0:02:45.1]} 25... Qc8 {[%clk 0:02:30.2]} 26. Nh5 {[%clk 0:02:36.8]}
26... Qg4 {[%clk 0:02:24.8]} 27. Nf4 {[%clk 0:01:38.6]} 27... Qf3 {[%clk
0:02:03.6]} 28. Qxf3 {[%clk 0:01:23.5]} 28... Nxf3+ {[%clk 0:02:03.5]} 29. Kg2
{[%clk 0:01:22.5]} 29... Nd4 {[%clk 0:01:58.5]} 30. R1b6 {[%clk 0:01:15]} 30...
Red8 {[%clk 0:01:44.8]} 31. Re7 {[%clk 0:01:06.1]} 31... Nf5 {[%clk 0:01:33.8]}
32. Re2 {[%clk 0:00:59.4]} 32... Rdb8 {[%clk 0:01:28.8]} 33. Rxb8+ {[%clk
0:00:43.6]} 33... Rxb8 {[%clk 0:01:28.7]} 34. g4 {[%clk 0:00:40.7]} 34... Nh4+
{[%clk 0:01:08.2]} 35. Kg3 {[%clk 0:00:37.4]} 35... Ng6 {[%clk 0:01:07.6]} 36.
Nd3 {[%clk 0:00:25.8]} 36... c4 {[%clk 0:01:01.7]} 37. Nb2 {[%clk 0:00:19]}
37... c3 {[%clk 0:00:59.9]} 38. Na4 {[%clk 0:00:17.7]} 38... Rc8 {[%clk
0:00:57.5]} 39. Rc2 {[%clk 0:00:16.6]} 39... Ne7 {[%clk 0:00:54.5]} 40. Rxc3
{[%clk 0:00:13.7]} 40... Rxc3+ {[%clk 0:00:45.5]} 41. Nxc3 {[%clk 0:00:13.2]}
41... f5 {[%clk 0:00:44.6]} 42. Kf4 {[%clk 0:00:11.2]} 42... fxg4 {[%clk
0:00:43.2]} 43. Kxg4 {[%clk 0:00:10.5]} 43... Kf7 {[%clk 0:00:42.5]} 44. f4
{[%clk 0:00:09.7]} 44... g6 {[%clk 0:00:40.5]} 45. h4 {[%clk 0:00:08]} 45... Nf5
{[%clk 0:00:39.7]} 46. Ne4 {[%clk 0:00:05.5]} 46... Ne3+ {[%clk 0:00:38.7]} 47.
Kf3 {[%clk 0:00:04.1]} 47... Nxd5 {[%clk 0:00:37.6]} 48. Nxd6+ {[%clk
0:00:03.2]} 48... Ke6 {[%clk 0:00:36.9]} 49. Nc4 {[%clk 0:00:02.1]} 49... Nb4
{[%clk 0:00:32.4]} 50. Na5 {[%clk 0:00:01.4]} 50... Nxa2 {[%clk 0:00:30.9]} 0-1

[Event "Live Chess"]
[Site "Chess.com"]
[Date "2024.06.02"]
[Round "-"]
[White "NeilDruggan73"]
[Black "uselessduffer"]
[Result "0-1"]
[WhiteElo "1712"]
[BlackElo "2354"]
[TimeControl "300"]
[EndTime "7:04:04 PDT"]
[Termination "uselessduffer won by resignation"]

1. d4 {[%clk 0:04:52.9]} 1... Nf6 {[%clk 0:04:55.1]} 2. Bg5 {[%clk 0:04:51.5]}
2... e6 {[%clk 0:04:54]} 3. e4 {[%clk 0:04:49.1]} 3... h6 {[%clk 0:04:53]} 4.
Bxf6 {[%clk 0:04:47.1]} 4... Qxf6 {[%clk 0:04:52.9]} 5. Nf3 {[%clk 0:04:45.5]}
5... d6 {[%clk 0:04:49.4]} 6. c3 {[%clk 0:04:45.1]} 6... g5 {[%clk 0:04:44.1]}
7. Bc4 {[%clk 0:04:44]} 7... Bg7 {[%clk 0:04:42.4]} 8. O-O {[%clk 0:04:40.9]}
8... Nd7 {[%clk 0:04:37.3]} 9. Nbd2 {[%clk 0:04:35.7]} 9... Nf8 {[%clk
0:04:10.9]} 10. Re1 {[%clk 0:04:34.6]} 10... Ng6 {[%clk 0:04:08.7]} 11. e5
{[%clk 0:04:27]} 11... Qe7 {[%clk 0:04:05]} 12. Qc2 {[%clk 0:04:21]} 12... Bd7
{[%clk 0:03:33.7]} 13. Ne4 {[%clk 0:03:52.9]} 13... dxe5 {[%clk 0:03:13.1]} 14.
dxe5 {[%clk 0:03:46.5]} 14... Nxe5 {[%clk 0:03:13]} 15. Nxe5 {[%clk 0:03:37.7]}
15... Bxe5 {[%clk 0:03:12.9]} 16. Rad1 {[%clk 0:03:27.7]} 16... O-O-O {[%clk
0:03:08.5]} 17. Qb3 {[%clk 0:03:24.5]} 17... Bc6 {[%clk 0:02:58.8]} 18. f3
{[%clk 0:03:03.7]} 18... Rxd1 {[%clk 0:02:14.5]} 19. Rxd1 {[%clk 0:03:00.9]}
19... Rd8 {[%clk 0:02:14.2]} 20. Rxd8+ {[%clk 0:02:54.4]} 20... Kxd8 {[%clk
0:02:14.1]} 21. Bb5 {[%clk 0:02:50.1]} 21... Bxe4 {[%clk 0:01:56]} 22. fxe4
{[%clk 0:02:47.1]} 22... Qc5+ {[%clk 0:01:54.8]} 23. Kh1 {[%clk 0:02:40]} 23...
Qf2 {[%clk 0:01:45.9]} 24. Qd1+ {[%clk 0:02:22.4]} 24... Ke7 {[%clk 0:01:43.4]}
25. Qd7+ {[%clk 0:02:02.4]} 25... Kf8 {[%clk 0:01:39.7]} 26. Qd1 {[%clk
0:01:47.8]} 26... Qxb2 {[%clk 0:01:33.4]} 27. a4 {[%clk 0:01:36.1]} 27... Qxc3
{[%clk 0:01:29.4]} 28. h4 {[%clk 0:01:34.1]} 28... Qa1 {[%clk 0:01:25.7]} 29.
Qxa1 {[%clk 0:01:28.5]} 29... Bxa1 {[%clk 0:01:25.6]} 30. hxg5 {[%clk
0:01:26.9]} 30... hxg5 {[%clk 0:01:25.5]} 31. Kh2 {[%clk 0:01:23.6]} 31... Ke7
{[%clk 0:01:23.2]} 32. Kg3 {[%clk 0:01:22.8]} 32... c6 {[%clk 0:01:20.9]} 33.
Bd3 {[%clk 0:01:16.4]} 33... Be5+ {[%clk 0:01:16.7]} 34. Kf3 {[%clk 0:01:15.7]}
34... Kd6 {[%clk 0:01:15]} 35. g4 {[%clk 0:01:12.9]} 35... a6 {[%clk 0:01:13.8]}
36. Ke3 {[%clk 0:01:09.4]} 36... b5 {[%clk 0:01:12.7]} 37. axb5 {[%clk
0:01:07.3]} 37... cxb5 {[%clk 0:01:12.6]} 38. Kd2 {[%clk 0:01:04.5]} 38... Kc5
{[%clk 0:01:12.2]} 39. Kc2 {[%clk 0:01:03.1]} 39... a5 {[%clk 0:01:11.4]} 40.
Kb3 {[%clk 0:01:01.1]} 40... a4+ {[%clk 0:01:10.9]} 41. Ka3 {[%clk 0:00:58.6]}
41... Bc3 {[%clk 0:01:09.2]} 42. Bc2 {[%clk 0:00:50.2]} 42... Bd2 {[%clk
0:01:07.3]} 43. Bd3 {[%clk 0:00:48.7]} 43... Bc1+ {[%clk 0:01:05.3]} 44. Ka2
{[%clk 0:00:46.1]} 44... b4 {[%clk 0:01:04.9]} 45. Kb1 {[%clk 0:00:44.1]} 45...
Bf4 {[%clk 0:01:02.5]} 46. Kc2 {[%clk 0:00:41]} 46... b3+ {[%clk 0:01:00.8]} 47.
Kb2 {[%clk 0:00:39.3]} 47... Kb4 {[%clk 0:00:58.4]} 48. Kb1 {[%clk 0:00:32.8]}
48... a3 {[%clk 0:00:56.9]} 49. Ba6 {[%clk 0:00:27.9]} 49... a2+ {[%clk
0:00:53.6]} 0-1

[Event "Live Chess"]
[Site "Chess.com"]
[Date "2024.06.02"]
[Round "-"]
[White "grillage"]
[Black "JoeyCage"]
[Result "0-1"]
[WhiteElo "1884"]
[BlackElo "2398"]
[TimeControl "300"]
[EndTime "7:04:06 PDT"]
[Termination "JoeyCage won on time"]

1. d4 {[%clk 0:04:56]} 1... e6 {[%clk 0:04:58.4]} 2. e4 {[%clk 0:04:51.1]} 2...
c5 {[%clk 0:04:55.3]} 3. d5 {[%clk 0:04:43.3]} 3... Nf6 {[%clk 0:04:52.8]} 4.
Nc3 {[%clk 0:04:42.3]} 4... a6 {[%clk 0:04:50.6]} 5. a4 {[%clk 0:04:40.1]} 5...
Qc7 {[%clk 0:04:44.7]} 6. Nf3 {[%clk 0:04:28.7]} 6... d6 {[%clk 0:04:41.8]} 7.
Be2 {[%clk 0:04:22.9]} 7... Be7 {[%clk 0:04:38.8]} 8. O-O {[%clk 0:04:20.9]}
8... h6 {[%clk 0:04:37.4]} 9. Re1 {[%clk 0:04:19.5]} 9... O-O {[%clk 0:04:34.8]}
10. h3 {[%clk 0:04:06.8]} 10... Nbd7 {[%clk 0:04:32.8]} 11. Bf4 {[%clk 0:04:05]}
11... Ne5 {[%clk 0:04:25]} 12. Bh2 {[%clk 0:03:52.3]} 12... Rd8 {[%clk
0:04:22.2]} 13. Nd2 {[%clk 0:03:44.2]} 13... exd5 {[%clk 0:04:15.7]} 14. exd5
{[%clk 0:03:42.2]} 14... Ng6 {[%clk 0:04:10]} 15. Nc4 {[%clk 0:03:36.1]} 15...
Bf8 {[%clk 0:04:07]} 16. Bf3 {[%clk 0:03:26.8]} 16... Nd7 {[%clk 0:04:03.3]} 17.
Bg4 {[%clk 0:03:19.3]} 17... Nde5 {[%clk 0:04:00]} 18. Be2 {[%clk 0:03:03.3]}
18... Nxc4 {[%clk 0:03:57.9]} 19. Bxc4 {[%clk 0:03:02.3]} 19... Bd7 {[%clk
0:03:53.6]} 20. Re3 {[%clk 0:02:55.8]} 20... Re8 {[%clk 0:03:52.1]} 21. Rg3
{[%clk 0:02:37.8]} 21... Ne5 {[%clk 0:03:45.9]} 22. Bd3 {[%clk 0:02:29.2]} 22...
c4 {[%clk 0:03:38.7]} 23. Be4 {[%clk 0:02:25.1]} 23... b5 {[%clk 0:03:37.1]} 24.
axb5 {[%clk 0:02:10.6]} 24... axb5 {[%clk 0:03:34.6]} 25. Rxa8 {[%clk
0:02:09.3]} 25... Rxa8 {[%clk 0:03:32.6]} 26. f4 {[%clk 0:01:47.1]} 26... Ng6
{[%clk 0:03:26.2]} 27. Bxg6 {[%clk 0:01:42.3]} 27... fxg6 {[%clk 0:03:24.7]} 28.
Rxg6 {[%clk 0:01:39.7]} 28... Re8 {[%clk 0:03:21.2]} 29. f5 {[%clk 0:01:29.7]}
29... b4 {[%clk 0:03:15.8]} 30. Ne2 {[%clk 0:01:23.4]} 30... Bxf5 {[%clk
0:03:12.4]} 31. Rg3 {[%clk 0:01:12.5]} 31... Qc5+ {[%clk 0:03:10.2]} 32. Kh1
{[%clk 0:01:10.1]} 32... Qf2 {[%clk 0:03:02.7]} 33. Ng1 {[%clk 0:00:53]} 33...
Re1 {[%clk 0:02:56.4]} 34. Qf3 {[%clk 0:00:29.9]} 34... Qxf3 {[%clk 0:02:49.8]}
35. Rxf3 {[%clk 0:00:28.9]} 35... Be4 {[%clk 0:02:46]} 36. Rf2 {[%clk
0:00:20.6]} 36... Bxd5 {[%clk 0:02:40.9]} 37. Bg3 {[%clk 0:00:18.2]} 37... Rd1
{[%clk 0:02:34.9]} 38. Kh2 {[%clk 0:00:17.3]} 38... Be4 {[%clk 0:02:32.5]} 39.
c3 {[%clk 0:00:14.3]} 39... bxc3 {[%clk 0:02:30.4]} 40. bxc3 {[%clk 0:00:13.4]}
40... Rd3 {[%clk 0:02:29.7]} 41. Re2 {[%clk 0:00:10.1]} 41... d5 {[%clk
0:02:27.8]} 42. Nf3 {[%clk 0:00:07]} 42... Bxf3 {[%clk 0:02:26.2]} 43. gxf3
{[%clk 0:00:05.7]} 43... Rxc3 {[%clk 0:02:25.3]} 44. Rd2 {[%clk 0:00:04.5]}
44... Rxf3 {[%clk 0:02:23.2]} 45. Rxd5 {[%clk 0:00:02.5]} 45... c3 {[%clk
0:02:22.2]} 0-1

[Event "Live Chess"]
[Site "Chess.com"]
[Date "2024.06.02"]
[Round "-"]
[White "stevochess11"]
[Black "lateforthesky"]
[Result "0-1"]
[WhiteElo "1678"]
[BlackElo "2074"]
[TimeControl "300"]
[EndTime "7:04:14 PDT"]
[Termination "lateforthesky won by resignation"]

1. d4 {[%clk 0:04:56.4]} 1... Nf6 {[%clk 0:04:53.9]} 2. Nf3 {[%clk 0:04:55]}
2... g6 {[%clk 0:04:52.8]} 3. Nc3 {[%clk 0:04:52.4]} 3... d5 {[%clk 0:04:49.6]}
4. Bf4 {[%clk 0:04:50.7]} 4... Bg7 {[%clk 0:04:48.9]} 5. e3 {[%clk 0:04:49.6]}
5... O-O {[%clk 0:04:45.2]} 6. Be2 {[%clk 0:04:48.5]} 6... b6 {[%clk 0:04:37.6]}
7. Ne5 {[%clk 0:04:46.5]} 7... c5 {[%clk 0:04:33.4]} 8. g4 {[%clk 0:04:32]} 8...
Bb7 {[%clk 0:04:25.9]} 9. h4 {[%clk 0:04:27.3]} 9... Nbd7 {[%clk 0:03:55.5]} 10.
h5 {[%clk 0:04:22.6]} 10... Ne4 {[%clk 0:03:36.4]} 11. hxg6 {[%clk 0:04:15.5]}
11... hxg6 {[%clk 0:03:27.1]} 12. Nxe4 {[%clk 0:04:07.2]} 12... dxe4 {[%clk
0:03:21.4]} 13. Nxg6 {[%clk 0:03:57.6]} 13... fxg6 {[%clk 0:03:15.8]} 14. Bc4+
{[%clk 0:03:56.3]} 14... Rf7 {[%clk 0:03:14.9]} 15. Bh6 {[%clk 0:03:44.3]} 15...
Nf6 {[%clk 0:03:11.9]} 16. Bxg7 {[%clk 0:03:36.5]} 16... Kxg7 {[%clk 0:03:09.7]}
17. Bxf7 {[%clk 0:03:34.2]} 17... Kxf7 {[%clk 0:03:07.7]} 18. c3 {[%clk
0:03:31.3]} 18... Kg7 {[%clk 0:02:39.6]} 19. g5 {[%clk 0:03:28]} 19... Nh7
{[%clk 0:02:32]} 20. Qg4 {[%clk 0:03:14.7]} 20... e5 {[%clk 0:02:03.3]} 21.
O-O-O {[%clk 0:03:00.8]} 21... exd4 {[%clk 0:01:59.4]} 22. exd4 {[%clk
0:02:57.3]} 22... c4 {[%clk 0:01:55.7]} 23. Qh4 {[%clk 0:02:34.9]} 23... Qxg5+
{[%clk 0:01:53.5]} 24. Qxg5 {[%clk 0:02:31.4]} 24... Nxg5 {[%clk 0:01:52.4]} 25.
d5 {[%clk 0:02:26.4]} 25... Rd8 {[%clk 0:01:47.9]} 26. d6 {[%clk 0:02:21]} 26...
e3 {[%clk 0:01:28.9]} 27. Rhg1 {[%clk 0:02:09.2]} 27... Nf3 {[%clk 0:01:21.6]}
28. Rg3 {[%clk 0:02:02]} 28... e2 {[%clk 0:01:20.8]} 29. Rxf3 {[%clk 0:01:58.7]}
29... exd1=Q+ {[%clk 0:01:19.4]} 30. Kxd1 {[%clk 0:01:55.9]} 30... Bxf3+ {[%clk
0:01:18.8]} 0-1